Cogmind - Beta 14 @@@ ROGUE MODE // 2025.03.12 @ 13:28:01 Player: beter Result: Destroyed by H-66 Slayer with Gauss Rifle Performance ------------- Evolutions (4) 2000 Regions Visited (6) 1200 Robots Destroyed (19) 95 Value Destroyed (576) 576 Prototype IDs (2) 40 Alien Tech Used (0) 0 Bonus (500) 500 TOTAL SCORE: 4411 Bonus ------- Entered DSFs 500 Cogmind --------- Core Integrity 0/850 Matter 118/300 Energy 100/100 System Corruption 7% Temperature Cool (0) Movement Core (50) Location -6/Factory Parts ------- > --- POWER (1) -------- (None) > --- PROPULSION (6) --- (None) > --- UTILITY (6) ------ (None) > --- WEAPON (2) ------- (None) > --- INVENTORY (5) ---- Advanced ECM Suite Peak State ------------ > --- POWER ------------ Light Nuclear Core > --- PROPULSION ------- Surge Thruster Surge Thruster Surge Thruster Nuclear Pulse Thruster Nuclear Pulse Thruster Nuclear Pulse Thruster > --- UTILITY ---------- Heat Sink Compact Battery Weight Redist. System Enhanced Optical Array Improved Signal Interpreter Advanced Terrain Scan Processor > --- WEAPON ----------- Remote Datajack > --- INVENTORY -------- Surge Thruster Nuclear Pulse Thruster Nuclear Pulse Thruster Advanced ECM Suite Flak Gun [Rating: 51] Favorites ----------- Power Light Ion Engine Engine Light Ion Engine Power Core Light Nuclear Core Propulsion Aluminum Leg Leg Aluminum Leg Wheel Wheel Flight Unit Surge Thruster Utility Small Storage Unit Device Heat Sink Storage Small Storage Unit Processor Improved Signal Interpreter Weapon Small Laser Energy Gun Small Laser Energy Cannon Particle Cannon Ballistic Gun Light Assault Rifle Ballistic Cannon Improved Light Cannon Launcher Grenade Launcher Special Weapon Remote Datajack Special Melee Weapon Datajack Build | -11 -10 -9 -8 -7 -7 -6 ------- Run | Yrd Mat Mat Mat Fac DSF Fac Slots Evolved 8 | . . 2 2 2 . 2 Power . | . . . . . . . Propulsion 4 | . . 1 1 1 . 1 Utility 4 | . . 1 1 1 . 1 Weapon . | . . . . . . . Parts Attached 53 | 6 5 17 2 1 4 18 Power 5 | 1 . 2 . . . 2 Engine 4 | 1 . 2 . . . 1 Core 1 | . . . . . . 1 Reactor . | . . . . . . . Propulsion 22 | 2 2 7 . 1 3 7 Treads . | . . . . . . . Leg 7 | 2 2 3 . . . . Wheel 2 | . . 2 . . . . Hover . | . . . . . . . Flight 13 | . . 2 . 1 3 7 Utility 11 | 1 1 2 1 . . 6 Device 5 | . 1 2 . . . 2 Storage 2 | 1 . . . . . 1 Processor 4 | . . . 1 . . 3 Hackware . | . . . . . . . Protection . | . . . . . . . Artifact . | . . . . . . . Weapon 15 | 2 2 6 1 . 1 3 Energy Gun 4 | . 1 3 . . . . Energy Cannon 1 | . . . 1 . . . Ballistic Gun 6 | 2 1 1 . . . 2 Ballistic Cannon 1 | . . 1 . . . . Launcher 1 | . . 1 . . . . Special Weapon 1 | . . . . . . 1 Impact Weapon . | . . . . . . . Slashing Weapon . | . . . . . . . Piercing Weapon . | . . . . . . . Special Melee Weapon 1 | . . . . . 1 . Unidentified Prototypes 2 | . . . . . . 2 Parts Lost 29 | . 2 10 1 . 2 14 Power 3 | . . 2 . . . 1 Propulsion 12 | . 1 2 1 . . 8 Utility 6 | . . 1 . . 1 4 Weapon 8 | . 1 5 . . 1 1 Highest Loss Streak 14 | . 2 7 1 . 2 14 To Critical Strikes . | . . . . . . . Average Slot Usage (%) 74 | . 94 70 60 42 53 63 Engine 7 | . 14 9 8 . . . Leg 13 | . 27 16 . . . . Flight 10 | . . 4 17 11 18 28 Device 10 | . 9 10 18 15 13 6 Storage 8 | . 14 8 . . . 4 Processor 4 | . . . 7 7 7 15 Energy Gun 6 | . 5 9 9 7 7 1 Ballistic Gun 9 | . 22 7 . . . . Peak Build Rating 51 | 6 9 10 13 11 18 51 Average Rating 13 | 4 7 7 10 10 12 30 On Entrance 8 | . 6 9 8 9 11 18 Naked Turns 2 | . . . . . . 2 Heaviest Build 16 | 12 12 16 8 3 4 15 Greatest Support 30 | 20 20 30 8 8 17 27 Greatest Overweight (x) 4 | . . 4 . . . . Average Overweight (x) . | . . . . . . . Largest Inventory Capacity 8 | 8 8 8 5 5 5 5 Average Capacity 6 | 6 8 7 5 5 5 5 Most Carried 8 | 6 8 7 3 3 5 5 Average Carried 4 | 3 6 4 2 3 3 4 Final Capacity 8 | 8 8 5 5 5 5 5 Final Carried 6 | 6 6 3 3 3 5 1 Class Distribution -------------------- 50% | Scavenger-Mutant 41% | Mutant 8% | Scavenger-Sprinter Dominant Class ---------------- Mutant | -10/Materials Scavenger-Mutant | -9/Materials Scavenger-Mutant | -8/Materials Mutant | -7/Factory Mutant | -7/DSF Scavenger-Mutant | -6/Factory Resources | -11 -10 -9 -8 -7 -7 -6 ----------- Run | Yrd Mat Mat Mat Fac DSF Fac Matter Collected 689 | 216 131 297 40 . . 5 Remotely . | . . . . . . . Salvage Created 473 | . 177 256 40 . . . Parts 28 | . 7 20 1 . . . Haulers Intercepted . | . . . . . . . Recyclers Shooed 1 | . . 1 . . . . Parts Field Recycled . | . . . . . . . Retrieved Matter . | . . . . . . . Parts Self-Destructed . | . . . . . . . Prevented . | . . . . . . . Kills | -11 -10 -9 -8 -7 -7 -6 ------- Run | Yrd Mat Mat Mat Fac DSF Fac Combat Hostiles Destroyed 19 | . 4 14 1 . . . Guns 10 | . 4 6 . . . . Cannons 3 | . . 2 1 . . . AOE 6 | . . 6 . . . . Classes Destroyed 4 | . 1 3 . . . . Swarmer 6 | . . 6 . . . . Grunt 10 | . 4 5 1 . . . Duelist 1 | . . 1 . . . . Sentry 2 | . . 2 . . . . Best Kill Streak 6 | . 2 6 1 . . . Combat Bots Only 6 | . 2 6 1 . . . Max Kills in Single Turn 3 | . 1 3 1 . . . Gunslinging . | . . . . . . . Exploded 3 | . . 3 . . . . Melee . | . . . . . . . Uniques/NPCs Destroyed . | . . . . . . . Combat | -11 -10 -9 -8 -7 -7 -6 -------- Run | Yrd Mat Mat Mat Fac DSF Fac Hostile Shots Fired 344 | . 36 114 8 . 41 145 Missed 133 | . 10 28 3 . 30 62 Damage Taken 3154 | . 354 1059 72 . 156 1513 Core 1164 | . 46 168 42 . 43 865 Absorbed by Shields . | . . . . . . . Core Remaining (%) 84 | 100 81 58 92 . 93 . Volleys Fired 85 | . 21 56 1 . . 7 Largest 2 | . 2 2 2 . . 1 Hottest 108 | . 60 104 108 . . 28 Shots Fired 140 | . 42 89 2 . . 7 Gun 118 | . 42 73 1 . . 2 Cannon 12 | . . 11 1 . . . Launcher 5 | . . 5 . . . . Special 5 | . . . . . . 5 Kinetic 97 | . 40 55 . . . 2 Thermal 33 | . 2 29 2 . . . Explosive 5 | . . 5 . . . . Electromagnetic . | . . . . . . . Robot Hit Streak 31 | . 17 31 3 . . 4 Robot Miss Streak 9 | . 3 9 . . . 6 Penetration Max . | . . . . . . . Secondary Targets . | . . . . . . . Shots Hit Robots 109 | . 35 66 2 . . 6 Core Hits 55 | . 12 39 2 . . 2 Critical Kills . | . . . . . . . Critical Parts Destroyed 1 | . 1 . . . . . Critical Strikes 2 | . 1 1 . . . . Burn 1 | . . 1 . . . . Destroy 1 | . 1 . . . . . Melee Attacks . | . . . . . . . Impact . | . . . . . . . Slashing . | . . . . . . . Piercing . | . . . . . . . Sneak Attacks . | . . . . . . . Combat Hostiles . | . . . . . . . Follow-up Attacks . | . . . . . . . Damage Inflicted 1495 | . 365 1059 30 . . 41 Guns 1107 | . 365 699 10 . . 33 Cannons 83 | . . 63 20 . . . Explosions 290 | . . 290 . . . . Melee . | . . . . . . . Ramming 15 | . . 7 . . . 8 Kinetic 767 | . 354 380 . . . 33 Thermal 423 | . 11 382 30 . . . Explosive 290 | . . 290 . . . . Electromagnetic . | . . . . . . . Impact . | . . . . . . . Slashing . | . . . . . . . Piercing . | . . . . . . . Highest Corruption 7 | . . . . . . 7 Average Corruption 3 | . . . . . . 3 Corruption Purged . | . . . . . . . Corruption Blocked . | . . . . . . . Effects 2 | . . . . . . 2 Message Errors 1 | . . . . . . 1 Matter Fused 1 | . . . . . . 1 Overload Shots . | . . . . . . . Overflow Damage 30 | . . 30 . . . . Projectiles . | . . . . . . . Explosions 30 | . . 30 . . . . Melee . | . . . . . . . Knockbacks 1 | . . 1 . . . . Impact 1 | . . 1 . . . . Kinetic . | . . . . . . . Secondary . | . . . . . . . Self-Inflicted Damage 3 | . . . . . . 3 Shots . | . . . . . . . Rammed 2 | . . . . . . 2 Targets Rammed 5 | . . 3 . . . 2 Kicked 3 | . . 3 . . . . Crushed . | . . . . . . . Highest Temperature 71 | . 18 71 6 . . . Average Temperature 22 | . 8 27 4 . . . Received Heat Transfer 609 | . 204 312 27 . 42 24 Siege Activations . | . . . . . . . Robots Corrupted . | . . . . . . . Combat Hostiles . | . . . . . . . Parts Fried . | . . . . . . . Impact Corruptions . | . . . . . . . Robots Melted . | . . . . . . . Combat Hostiles . | . . . . . . . Parts Melted 2 | . . 2 . . . . Heat Transferred 787 | . 25 700 62 . . . Parts Sabotaged . | . . . . . . . Parts Stolen . | . . . . . . . Parts Stripped . | . . . . . . . Power Chain Reactions . | . . . . . . . Alert | -11 -10 -9 -8 -7 -7 -6 ------- Run | Yrd Mat Mat Mat Fac DSF Fac Peak Influence 369 | . 123 369 317 154 122 83 Initial 139 | . . . 87 139 107 53 Average 103 | . 45 188 200 152 107 48 Maximum Alert Level 1 | . . 1 1 . . . Low Security (%) 81 | 100 100 51 49 100 100 100 Level 1 18 | . . 48 50 . . . Level 2 . | . . . . . . . Level 3 . | . . . . . . . Level 4 . | . . . . . . . Level 5 . | . . . . . . . High Security . | . . . . . . . Max Security . | . . . . . . . Squads Dispatched 9 | . 1 2 1 . 1 4 Investigation 3 | . 1 1 . . . 1 Extermination . | . . . . . . . Reinforcement 6 | . . 1 1 . 1 3 Assault . | . . . . . . . Garrison . | . . . . . . . Intercept . | . . . . . . . Searches Triggered . | . . . . . . . Construction Impeded 1 | . . . . . . 1 Haulers Reinforced . | . . . . . . . Active Scanning Responses . | . . . . . . . Cargo Convoy Interrupts . | . . . . . . . Stealth | -11 -10 -9 -8 -7 -7 -6 --------- Run | Yrd Mat Mat Mat Fac DSF Fac Distress Signals 7 | . 1 2 4 . . . Communications Jammed . | . . . . . . . Distress Signals . | . . . . . . . Times Spotted 64 | . 7 25 13 . 5 14 Peak Tracking Total 10 | . 4 7 10 . 4 10 Tactical Retreats 12 | . 1 2 4 . 1 4 Traps | -11 -10 -9 -8 -7 -7 -6 ------- Run | Yrd Mat Mat Mat Fac DSF Fac Traps Triggered 3 | . 1 1 . . . 1 Indirectly . | . . . . . . . Trap Hack Attempts . | . . . . . . . Triggered . | . . . . . . . Disarmed . | . . . . . . . Reprogrammed . | . . . . . . . Reused . | . . . . . . . Traps Extracted . | . . . . . . . Installed . | . . . . . . . Triggered . | . . . . . . . Machines | -11 -10 -9 -8 -7 -7 -6 ---------- Run | Yrd Mat Mat Mat Fac DSF Fac Machines Disabled . | . . . . . . . Max in Single Turn . | . . . . . . . Machines Repaired . | . . . . . . . Machines Dismantled . | . . . . . . . Machines Sabotaged . | . . . . . . . Overloaded Fab Kills . | . . . . . . . Hacking | -11 -10 -9 -8 -7 -7 -6 --------- Run | Yrd Mat Mat Mat Fac DSF Fac Machines Accessed 15 | . 4 3 1 1 . 6 Terminals 14 | . 3 3 1 1 . 6 Fabricators . | . . . . . . . Repair Stations . | . . . . . . . Recycling Units 1 | . 1 . . . . . Scanalyzers . | . . . . . . . Garrison Access . | . . . . . . . Total Hacks 34 | . 11 11 2 1 . 9 Successful 8 | . 4 3 . 1 . . Failed 26 | . 7 8 2 . . 9 Catastrophic 10 | . 3 4 . . . 3 Database Lockouts . | . . . . . . . Manual 20 | . 8 10 2 . . . Terminals 32 | . 9 11 2 1 . 9 Fabricators . | . . . . . . . Repair Stations . | . . . . . . . Recycling Units 2 | . 2 . . . . . Scanalyzers . | . . . . . . . Garrison Access . | . . . . . . . Terminal Hacks 7 | . 3 3 . 1 . . Open DSF 1 | . . . . 1 . . Branch Access Points 2 | . 1 1 . . . . Terminal Index 2 | . 1 1 . . . . Alert Level 1 | . . 1 . . . . Zone Layout 1 | . 1 . . . . . Fabricator Hacks . | . . . . . . . Repair Station Hacks . | . . . . . . . Recycling Unit Hacks 1 | . 1 . . . . . Retrieve Matter 1 | . 1 . . . . . Scanalyzer . | . . . . . . . Garrison Access Hacks . | . . . . . . . Unauthorized Hacks . | . . . . . . . Terminals . | . . . . . . . Fabricators . | . . . . . . . Repair Stations . | . . . . . . . Recycling Units . | . . . . . . . Scanalyzers . | . . . . . . . Garrison Access . | . . . . . . . Data Cores Recovered . | . . . . . . . Used . | . . . . . . . Hacking Detections 12 | . 2 3 1 . . 6 Full Trace Events 1 | . . . . . . 1 Feedback Events . | . . . . . . . Feedback Blocked . | . . . . . . . Robot Schematics Acquired . | . . . . . . . Robots Built . | . . . . . . . Authchips . | . . . . . . . Time . | . . . . . . . Total Robot Build Rating . | . . . . . . . Part Schematics Acquired . | . . . . . . . Parts Built . | . . . . . . . Authchips . | . . . . . . . Time . | . . . . . . . Total Part Build Rating . | . . . . . . . Parts Repaired . | . . . . . . . Time . | . . . . . . . Parts Recycled . | . . . . . . . Recycled Matter . | . . . . . . . Retrieved Matter . | . . . . . . . Retrieved Components . | . . . . . . . Parts Scanalyzed . | . . . . . . . Part Schematics Acquired . | . . . . . . . Parts Damaged . | . . . . . . . Bothacking | -11 -10 -9 -8 -7 -7 -6 ------------ Run | Yrd Mat Mat Mat Fac DSF Fac Used RIF Installer . | . . . . . . . Robots Hacked 2 | . . . . . . 2 Non-combat 2 | . . . . . . 2 Combat . | . . . . . . . Robot Hacks Applied 4 | . . . . . . 4 parse_system 2 | . . . . . . 2 no_distress 1 | . . . . . . 1 find_chute 1 | . . . . . . 1 Relay Couplers Released . | . . . . . . . Fabnet Peak Effective % . | . . . . . . . Robots Rewired . | . . . . . . . Allies Hacked . | . . . . . . . Hacks Repelled . | . . . . . . . Allies | -11 -10 -9 -8 -7 -7 -6 -------- Run | Yrd Mat Mat Mat Fac DSF Fac Total Allies . | . . . . . . . Largest Group . | . . . . . . . Highest-Rated Group . | . . . . . . . Highest-Rated Ally . | . . . . . . . Total Orders . | . . . . . . . Ally Attacks . | . . . . . . . Total Damage . | . . . . . . . Kills . | . . . . . . . Allies Corrupted . | . . . . . . . Allies Melted . | . . . . . . . Intel | -11 -10 -9 -8 -7 -7 -6 ------- Run | Yrd Mat Mat Mat Fac DSF Fac Robot Analysis Total . | . . . . . . . Derelict Logs Recovered . | . . . . . . . Drone Launches . | . . . . . . . Drone Recoveries . | . . . . . . . Exploration | -11 -10 -9 -8 -7 -7 -6 ------------- Run | Yrd Mat Mat Mat Fac DSF Fac Turns Passed 1550 | 55 459 455 125 42 46 368 Spaces Moved 1793 | 37 253 327 304 113 105 654 Core 13 | 5 . 5 . . . 3 Treads . | . . . . . . . Legs 411 | 32 253 126 . . . . Wheels 7 | . . 7 . . . . Hover . | . . . . . . . Flight 1362 | . . 189 304 113 105 651 Fastest Speed 24 | 50 120 37 37 34 24 24 Average Speed 55 | 110 120 74 37 35 33 34 Slowest Speed 250 | 120 120 250 40 40 34 50 Overloaded Moves . | . . . . . . . Propulsion Burnouts . | . . . . . . . Robots Hopped 26 | . . 3 6 . . 17 Cave-ins Triggered . | . . . . . . . Exploration Rate (%) 31 | 3 47 35 32 5 77 23 Regions Visited 6 Branch Regions . Pre-discovered Areas . | . . . . . . . Known Exits Taken 2 | . . . 1 1 . . Unknown Exits Taken 3 | 1 1 1 . . . . Scrap Searched . | . . . . . . . Spaces Dug . | . . . . . . . Terrain Destroyed 34 | . . 34 . . . . Melee . | . . . . . . . Projectile 1 | . . 1 . . . . AOE 33 | . . 33 . . . . Terrain Rammed . | . . . . . . . Walls Destroyed . | . . . . . . . Machines Disabled . | . . . . . . . Actions | -11 -10 -9 -8 -7 -7 -6 --------- Run | Yrd Mat Mat Mat Fac DSF Fac Total 2175 | 48 370 450 307 113 113 774 Wait 227 | . 85 37 5 . 1 99 Move 1740 | 36 252 320 293 112 104 623 Hop 21 | . . 3 4 . . 14 Pick Up 23 | 6 4 7 . . 3 3 Fast Attach 29 | 6 1 6 1 1 4 10 Attach 19 | . 2 10 1 . . 6 Detach 2 | . . . 1 . . 1 Swap 5 | . 2 1 . . . 2 Drop 19 | . 3 7 1 . 1 7 Fire 85 | . 21 56 1 . . 7 Melee . | . . . . . . . Ram 2 | . . . . . . 2 Kick 3 | . . 3 . . . . Crush . | . . . . . . . Escape Stasis . | . . . . . . . Rewire . | . . . . . . . Trap . | . . . . . . . Miscellaneous . | . . . . . . . Route ------- -11/Scrapyard -10/Materials (discovered 3 exits: *Mat / Min x2) -9/Materials (discovered 3 exits: *Mat / Min x2) -8/Materials -7/Factory (discovered 2 exits: *Fac / DSF) -7/DSF -6/Factory History --------- Turn | Location | Event 12 | -11/Scrapyard | Discovered new exit (range 14) 56 | -11/Scrapyard | Entered Materials 304 | -10/Materials | Build established: Mutant 392 | -10/Materials | Identified exit to Mines 395 | -10/Materials | Discovered new exit (range 13) 515 | -10/Materials | Entered another Materials area 515 | -9/Materials | Evolved 2 slots: Propulsion x1, Utility x1 715 | -9/Materials | Lost 7 parts (1p2n1u3w) 925 | -9/Materials | Identified exit to Mines 965 | -9/Materials | Discovered new exit (range 12) 970 | -9/Materials | Entered another Materials area 970 | -8/Materials | Evolved 2 slots: Propulsion x1, Utility x1 1014 | -8/Materials | Build established: Scavenger-Mutant 1090 | -8/Materials | Discovered new exit (range 11) 1095 | -8/Materials | Identified exit to Factory 1095 | -8/Materials | Entered Factory 1095 | -7/Factory | Evolved 2 slots: Propulsion x1, Utility x1 1113 | -7/Factory | Discovered new exit (range 9) 1120 | -7/Factory | Identified exit to Factory 1133 | -7/Factory | Identified exit to DSF 1137 | -7/Factory | Entered DSF 1167 | -7/DSF | Additional patrols routed to DSF 1171 | -7/DSF | Discovered exit to Factory (range 13) 1183 | -7/DSF | Entered Factory 1183 | -6/Factory | Evolved 2 slots: Propulsion x1, Utility x1 1539 | -6/Factory | Core integrity fell below 50% 1549 | -6/Factory | Core integrity fell below 20% 1551 | -6/Factory | Destroyed by H-66 Slayer with Gauss Rifle Last Messages --------------- 01538_ U-05 Engineer lays Concrete. 01541_ Penetrated by Slug. 01541_ Slug penetrates Wall. 01541_ Penetrated by Slug. 01541_ U-05 Engineer lays Concrete. 01542_ The unstable cave ceiling collapses. 01542_ U-05 Engineer lays Concrete. 01543_ K-01 Serf collects debris. 01544_ U-05 Engineer lays Concrete. 01544_ Slug penetrates Wall. 01545_ U-05 Engineer lays Concrete. 01545_ Penetrated by Slug. 01545_ U-05 Engineer lays Concrete. 01548_ Penetrated by Slug. 01548_ U-05 Engineer lays Concrete. 01549_ Adv. Terrain Scan Processor severed. 01549_ U-05 Engineer lays Concrete. 01551_ Penetrated by Slug. 01551_ C-17 Slicer destroyed. 01551_ Penetrated by Slug. Map ----- +----------------------------------------------------+ | ?????????????????????????????????????? | | ?????????????????????????????????????? | | ?????????????????????????????????????? | | ?????????????????????????????????????? | | ?????????????????????????????????????? | | ?????????????????????????????????????? | | ?????????????????????????????????????? | | ?????????????????????????????????????? | | ?????????????????????????????????????? | | ?????????????????????????????????????? | | ?????????????????????????????????????? | | ?????????????????????????????????????? | | ?????????????????????????????????????? | | ?????????????????????????????????????? | | ?????????????????????????????????????? | | ?????????????????????????????????????? | | ?????????????????????????????????????? | | ??###########????????????????????????? | | ??# """T""" #????????????????????????? | | ??# #????????????????????????? | | ??# #????##??????????????????? | | ??# """ """ #???""" #?????? ?????????? | | ??# """ """ #??""F""#?????? ?????????? | | ??# """ """ ###""!""####### ?????????? | | ??# =%/ ! ???#????? | | ??# #@ ?? #????? | | ??##+#####+## h ?? #????? | | ???# h u? #????? | | ####+#####+ u uu R?? #????? | | # u "" #????? | | # """ """ #????? | | # " " " R" """ #????? | | # " " " """ ###+## | | # " " " """ | | # " " " """ | | # " " " " """ | | # " " " [ | | ? " " " ! %! p R | | ? " " " ## #######+######## | | ? " " " # ## ## | | ? # " " " " ## """ """ ## | | # = # " " " " ## """ """ ## | | ############# " " " " ## """ """ ## | | ????????????# " " " " ## ## | | ????????????# " " " " ## """ """ # | | ????????????# " " " " ## """ """ + | | ????????????# " " " " #? """ """ # | | ????????????# " " " "???? # | | ????????????# " " "????? "" # | | ????????????? ????# S"" # | +----------------------------------------------------+ Best States ------------- Heat Dissipation 47 Energy Generation 18 Energy Capacity 360 Matter Stores 300 Matter Capacity 300 Sight Range 22 Terrain Scan Density 285 Additional Mass Support 6 Evasion (%) 71 Item Schematics ----------------- None Robot Schematics ------------------ None Fabricated ------------ Nothing Alien Tech Used ----------------- None Achievements -------------- Can't Catch Me Cya! Challenges ------------ None Game ------ Seed SalvageWardroneFragment Manual? 0 Play Time 00:37:21 Cumulative 14.4 hours Start 2025.03.11 @ 21:34:42 End 2025.03.12 @ 13:28:01 Sessions 2 Manual Loads 0 Difficulty Rogue Special Mode None Game No. 15 Rogue 15 Adventurer 0 Explorer 0 Win Type - Total 0 Types 0/0/0/0/0/0/0/0/0 Lore% 10 Gallery% 26 Achievement% 18 Wizard Run 0 Options --------- Layout 1 ASCII 0 Keyboard 0 Movement Mouse Keybinds 0 Fullscreen 1 Font 32/Tamsyn Map View 50x35 Zoom Use 0% Tactical HUD 1 Map Filters NONE Filters NONE Steam 1 RUN: db8900e2-be1d-4a85-8f51-b1b8e1e9d6c1